{"text_format":"1","workbook":"xlsx","n_sheets":4,"sheets":["Κύριος πίνακας","Πίνακας τιμαριθ. αναπροσαρμογής","Οδηγίες για τον κύριο πίνακα"," "],"not_rendered":{"charts":0,"images":12,"macros":1,"external_links":0,"defined_names":5,"comments":3,"pivot_tables":0},"unopened":[],"bounds":{"document_bytes":16777216,"sheet_cells":100000,"rows_first":2000,"rows_last":500,"rows_between":2000,"halvings":0,"cell_chars":16384,"cell_head_chars":4096},"cells_cut":0,"cells_raw":0,"read":"whole","date_system":"1900"}

{"sheet":"Κύριος πίνακας","index":0,"n_rows":111,"n_cols":70,"rows_kept":111,"cut":false,"hidden":false,"merged":[[41,5,43,5],[19,0,19,5],[20,1,20,2],[20,3,20,4],[21,0,23,0],[21,1,23,1],[21,2,23,2],[21,3,23,3],[21,4,23,4],[21,5,23,5],[40,1,40,2],[40,3,40,4],[41,0,43,0],[41,1,43,1],[41,2,43,2],[41,3,43,3],[41,4,43,4],[1,64,1,69],[2,65,2,66],[2,67,2,68],[3,64,5,64],[3,65,5,65],[3,66,5,66],[3,67,5,67],[3,68,5,68],[3,69,5,69],[1,0,1,5],[3,0,3,5],[4,0,4,5],[6,0,6,2],[7,0,7,2],[6,3,6,5],[109,0,109,5],[110,0,123,5],[83,0,83,4],[102,0,107,5],[101,0,101,5],[85,0,87,0],[85,1,87,1],[85,2,87,2],[85,3,87,3],[85,4,87,4],[84,0,84,1],[6,10,6,11],[8,10,8,11],[9,0,9,2],[8,0,8,2],[8,3,8,5],[9,3,9,5],[16,4,16,5],[17,3,17,4],[39,0,39,5],[0,0,0,5],[10,3,10,5],[10,0,10,2],[7,3,7,5],[5,0,5,2],[5,3,5,5],[12,0,17,0],[12,4,12,5],[13,4,13,5],[14,4,14,5],[15,4,15,5],[62,0,62,5],[63,1,63,2],[63,3,63,4],[64,0,66,0],[64,1,66,1],[64,2,66,2],[64,3,66,3],[64,4,66,4],[64,5,66,5]]}
[]
["Υπολογισμός των καθυστερημένων παροχών ανά άτομο *",null,null,null,null,null,null,null,null,null,null,null,null,null,null,null,null,null,null,null,null,null,null,null,null,null,null,null,null,null,null,null,null,null,null,null,null,null,null,null,null,null,null,null,null,null,null,null,null,null,null,null,null,null,null,null,null,null,null,null,null,null,null,null,"Πίνακας ετήσιου ποσού"]
["escolher idoma/chosse language",null,"Idioma:","English",null,null,null,null,null,null,null,null,null,null,null,null,null,null,null,null,null,null,null,null,null,null,null,null,null,null,null,null,null,null,null,null,null,null,null,null,null,null,null,null,null,null,null,null,null,null,null,null,null,null,null,null,null,null,null,null,null,null,null,null,"Έτος",null,null,"Νόμισμα πίνακα     "]
["* Παρακαλείσθε να συμβουλευτείτε τις οδηγίες για τη συμπλήρωση του εντύπου.",null,null,null,null,null,null,null,null,null,null,null,null,null,null,null,null,null,null,null,null,null,null,null,null,null,null,null,null,null,null,null,null,null,null,null,null,null,null,null,null,null,null,null,null,null,null,null,null,null,null,null,null,null,null,null,null,null,null,null,null,null,null,null,"Μήνας","Ορισθέν μηνιαίο ποσό","Ποσά που καταβλήθηκαν από τον υπόχρεο διατροφής","Ποσά που καταβλήθηκαν σε άλλα νομίσματα","Ποσά που καταβλήθηκαν από άλλες πηγές","Καθυστερημένες παροχές"]
["Απόφαση/δικαστικός συμβιβασμός/δημόσιο έγγραφο"]
["Όνομα του αιτούντος:"]
["Ημερομηνία (ηη/μμ/εεεε) και αριθμός αναφοράς της απόφασης/του δικαστικού συμβιβασμού/του δημοσίου εγγράφου:",null,null,null,null,null,null,null,null,null,null,null,null,null,null,null,null,null,null,null,null,null,null,null,null,null,null,null,null,null,null,null,null,null,null,null,null,null,null,null,null,null,null,null,null,null,null,null,null,null,null,null,null,null,null,null,null,null,null,null,null,null,null,null,"Ιανουάριος",null,null,null,null,{"$f":"BN7-BO7-BQ7","v":0}]
["Ονομασία δικαστηρίου/αρμόδιας αρχής προέλευσης:",null,null,null,null,null,null,null,null,null,null,null,null,null,null,null,null,null,null,null,null,null,null,null,null,null,null,null,null,null,null,null,null,null,null,null,null,null,null,null,null,null,null,null,null,null,null,null,null,null,null,null,null,null,null,null,null,null,null,null,null,null,null,null,"Φεβρουάριος",null,null,null,null,0]
["Ονοματεπώνυμο του εναγομένου:",null,null,null,null,null,null,null,null,null,null,null,null,null,null,null,null,null,null,null,null,null,null,null,null,null,null,null,null,null,null,null,null,null,null,null,null,null,null,null,null,null,null,null,null,null,null,null,null,null,null,null,null,null,null,null,null,null,null,null,null,null,null,null,"Μάρτιος",null,null,null,null,0]
["Πρόσωπο στο οποίο οφείλεται διατροφή:",null,null,null,null,null,null,null,null,null,null,null,null,null,null,null,null,null,null,null,null,null,null,null,null,null,null,null,null,null,null,null,null,null,null,null,null,null,null,null,null,null,null,null,null,null,null,null,null,null,null,null,null,null,null,null,null,null,null,null,null,null,null,null,"Απρίλιος",null,null,null,null,0]
["Αριθμός αναφοράς της αίτησης:",null,null,null,null,null,null,null,null,null,null,null,null,null,null,null,null,null,null,null,null,null,null,null,null,null,null,null,null,null,null,null,null,null,null,null,null,null,null,null,null,null,null,null,null,null,null,null,null,null,null,null,null,null,null,null,null,null,null,null,null,null,null,null,"Μάιος",null,null,null,null,0]
[null,null,null,null,null,null,null,null,null,null,null,null,null,null,null,null,null,null,null,null,null,null,null,null,null,null,null,null,null,null,null,null,null,null,null,null,null,null,null,null,null,null,null,null,null,null,null,null,null,null,null,null,null,null,null,null,null,null,null,null,null,null,null,null,"Ιούνιος",null,null,null,null,0]
["Νόμισμα της απόφασης/δικαστικού συμβιβασμού/δημοσίου εγγράφου            ",null,"    Ευρώ (EUR)","  ","Λεβ (BGN)",null,null,null,null,null,null,null,null,null,null,null,null,null,null,null,null,null,null,null,null,null,null,null,null,null,null,null,null,null,null,null,null,null,null,null,null,null,null,null,null,null,null,null,null,null,null,null,null,null,null,null,null,null,null,null,null,null,null,null,"Ιούλιος",null,null,null,null,0]
[null,null,"    Τσεχική κορώνα (CZK)",null,"Κούνα Κροατίας (HRK)  ",null,null,null,null,null,null,null,null,null,null,null,null,null,null,null,null,null,null,null,null,null,null,null,null,null,null,null,null,null,null,null,null,null,null,null,null,null,null,null,null,null,null,null,null,null,null,null,null,null,null,null,null,null,null,null,null,null,null,null,"Αύγουστος",null,null,null,null,0]
[null,null,"    Φιορίνι (HUF)",null,"Λίτας (LTL)",null,null,null,null,null,null,null,null,null,null,null,null,null,null,null,null,null,null,null,null,null,null,null,null,null,null,null,null,null,null,null,null,null,null,null,null,null,null,null,null,null,null,null,null,null,null,null,null,null,null,null,null,null,null,null,null,null,null,null,"Σεπτέμβριος",null,null,null,null,0]
[null,null,"    Πολωνικό ζλότυ (PLN) ",null,"Ρουμανικό λέι (RON)",null,null,null,null,null,null,null,null,null,null,null,null,null,null,null,null,null,null,null,null,null,null,null,null,null,null,null,null,null,null,null,null,null,null,null,null,null,null,null,null,null,null,null,null,null,null,null,null,null,null,null,null,null,null,null,null,null,null,null,"Οκτώβριος",null,null,null,null,0]
[null,null,"    Σουηδική κορώνα (SEK)",null,"Λίρα στερλίνα (GBP)",null,null,null,null,null,null,null,null,null,null,null,null,null,null,null,null,null,null,null,null,null,null,null,null,null,null,null,null,null,null,null,null,null,null,null,null,null,null,null,null,null,null,null,null,null,null,null,null,null,null,null,null,null,null,null,null,null,null,null,"Νοέμβριος",null,null,null,null,0]
[null,null,"    Άλλο (να προσδιοριστεί):",null,null,null,null,null,null,null,null,null,null,null,null,null,null,null,null,null,null,null,null,null,null,null,null,null,null,null,null,null,null,null,null,null,null,null,null,null,null,null,null,null,null,null,null,null,null,null,null,null,null,null,null,null,null,null,null,null,null,null,null,null,"Δεκέμβριος",null,null,null,null,0]
[null,null,null,null,null,null,null,null,null,null,null,null,null,null,null,null,null,null,null,null,null,null,null,null,null,null,null,null,null,null,null,null,null,null,null,null,null,null,null,null,null,null,null,null,null,null,null,null,null,null,null,null,null,null,null,null,null,null,null,null,null,null,null,null,"ΣΥΝΟΛΟ",{"$f":"SUM(BN7:BN18)","v":0},{"$f":"SUM(BO7:BO18)","v":0},null,{"$f":"SUM(BQ7:BQ18)","v":0},0]
["Πίνακας ετήσιου ποσού"]
["Έτος",null,null,"Νόμισμα πίνακα     "]
["Μήνας","Ορισθέν μηνιαίο ποσό","Ποσά που καταβλήθηκαν από τον υπόχρεο διατροφής","Ποσά που καταβλήθηκαν σε άλλα νομίσματα","Ποσά που καταβλήθηκαν από άλλες πηγές","Καθυστερημένες παροχές"]
[]
[]
["Ιανουάριος",null,null,null,null,{"$f":"B25-C25-E25","v":0}]
["Φεβρουάριος",null,null,null,null,0]
["Μάρτιος",null,null,null,null,0]
["Απρίλιος",null,null,null,null,0]
["Μάιος",null,null,null,null,0]
["Ιούνιος",null,null,null,null,0]
["Ιούλιος",null,null,null,null,0]
["Αύγουστος",null,null,null,null,0]
["Σεπτέμβριος",null,null,null,null,0]
["Οκτώβριος",null,null,null,null,0]
["Νοέμβριος",null,null,null,null,0]
["Δεκέμβριος",null,null,null,null,0]
["ΣΥΝΟΛΟ",{"$f":"SUM(B25:B36)","v":0},{"$f":"SUM(C25:C36)","v":0},null,{"$f":"SUM(E25:E36)","v":0},0]
[]
[]
["Πίνακας ετήσιου ποσού"]
["Έτος",2021,null,"Νόμισμα πίνακα     ",null,"Ευρώ"]
["Μήνας","Ορισθέν μηνιαίο ποσό","Ποσά που καταβλήθηκαν από τον υπόχρεο διατροφής","Ποσά που καταβλήθηκαν σε άλλα νομίσματα","Ποσά που καταβλήθηκαν από άλλες πηγές","Καθυστερημένες παροχές"]
[]
[]
["Ιανουάριος",null,null,null,null,{"$f":"B45-C45-E45","v":0}]
["Φεβρουάριος",null,null,null,null,0]
["Μάρτιος",null,null,null,null,0]
["Απρίλιος",null,null,null,null,0]
["Μάιος",null,null,null,null,0]
["Ιούνιος",null,null,null,null,0]
["Ιούλιος",null,null,null,null,0]
["Αύγουστος",null,null,null,null,0]
["Σεπτέμβριος",null,null,null,null,0]
["Οκτώβριος",null,null,null,null,0]
["Νοέμβριος",null,null,null,null,0]
["Δεκέμβριος",null,null,null,null,0]
["ΣΥΝΟΛΟ",{"$f":"SUM(B45:B56)","v":0},{"$f":"SUM(C45:C56)","v":0},null,{"$f":"SUM(E45:E56)","v":0},0]
[]
[]
[]
[]
[]
["Πίνακας ετήσιου ποσού "]
["Έτος",null,null,"Νόμισμα πίνακα     "]
["Μήνας","Ορισθέν μηνιαίο ποσό","Ποσά που καταβλήθηκαν από τον υπόχρεο διατροφής","Ποσά που καταβλήθηκαν σε άλλα νομίσματα","Ποσά που καταβλήθηκαν από άλλες πηγές","Καθυστερημένες παροχές"]
[]
[]
["Ιανουάριος",null,null,null,null,{"$f":"B68-C68-E68","v":0}]
["Φεβρουάριος",null,null,null,null,0]
["Μάρτιος",null,null,null,null,0]
["Απρίλιος",null,null,null,null,0]
["Μάιος",null,null,null,null,0]
["Ιούνιος",null,null,null,null,0]
["Ιούλιος",null,null,null,null,0]
["Αύγουστος",null,null,null,null,0]
["Σεπτέμβριος",null,null,null,null,0]
["Οκτώβριος",null,null,null,null,0]
["Νοέμβριος",null,null,null,null,0]
["Δεκέμβριος",null,null,null,null,0]
["ΣΥΝΟΛΟ",{"$f":"SUM(B68:B79)","v":0},{"$f":"SUM(C68:C79)","v":0},null,{"$f":"SUM(E68:E79)","v":0},0]
[]
[]
[]
["Συνοπτικός πίνακας"]
["Νόμισμα πίνακα     "]
["Έτος","Ορισθέν ετήσιο ποσό","Ποσά που καταβλήθηκαν από τον υπόχρεο διατροφής","Ποσά που καταβλήθηκαν από άλλες πηγές","Καθυστερημένες παροχές"]
[]
[]
[null,null,null,null,{"$f":"B89-C89-D89","v":0}]
[null,null,null,null,0]
[null,null,null,null,0]
[null,null,null,null,0]
[null,null,null,null,0]
[null,null,null,null,0]
[null,null,null,null,0]
[null,null,null,null,0]
[null,null,null,null,0]
[null,null,null,null,0]
["ΣΥΝΟΛΟ",{"$f":"SUM(B89:B98)","v":0},{"$f":"SUM(C89:C98)","v":0},{"$f":"SUM(D89:D98)","v":0},0]
[]
[]
["Άλλες σχετικές πληροφορίες — να συμπληρωθεί από την αιτούσα κεντρική αρχή"]
[]
[]
[]
[]
[]
[]
[]
["                                  Πίνακας τιμαριθμικής αναπροσαρμογής"]
["\n\nΈγινε στ  : ……………………………...…………. την ………………...……...…………... (ηη/μμ/εεεε)\n\nΥπογραφή του αιτούντος: ……………………………………………………………………………..................…...............\n\nκαι/ή, κατά περίπτωση,\n\nΟνοματεπώνυμο και υπογραφή του προσώπου/της αρχής που έχει εξουσιοδοτηθεί στο αιτούν κράτος μέλος να συμπληρώσει το έντυπο εξ ονόματος του αιτούντος: ……........…………………….............................................……...................................\n................................................................................................................................................................"]

{"sheet":"Πίνακας τιμαριθ. αναπροσαρμογής","index":1,"n_rows":33,"n_cols":15,"rows_kept":33,"cut":false,"hidden":false,"merged":[[4,6,5,6],[30,1,31,5],[0,0,0,14],[1,0,1,14],[4,9,4,14],[5,0,5,1],[3,2,3,4],[6,0,28,1],[4,3,5,3]]}
["Indexation table (Πίνακας τιμαριθμικής αναπροσαρμογής)"]
["(Για τον υπολογισμό του αναπροσαρμοσμένου ποσού)"]
[]
[null,null,"Εργαλείο αυτόματου υπολογισμού",null,null,null,"Σύνοψη συντελεστών αναπροσαρμογής "]
[null,null,"Έτος","Τιμαριθμική αναπροσαρμογή","Ποσό",null,"Έτος","Κράτος μέλος",null,"Αρμόδια οντότητα:",{"$f":"VLOOKUP(idioma,trad_v,26,FALSE)","v":{"$error":"#REF!"}},{"$f":"VLOOKUP(idioma,trad_v,26,FALSE)","v":{"$error":"#REF!"}},{"$f":"VLOOKUP(idioma,trad_v,26,FALSE)","v":{"$error":"#REF!"}},{"$f":"VLOOKUP(idioma,trad_v,26,FALSE)","v":{"$error":"#REF!"}},{"$f":"VLOOKUP(idioma,trad_v,26,FALSE)","v":{"$error":"#REF!"}}]
["Ορισθέν μηνιαίο ποσό διατροφής* ",null,2000,null,100,null,{"$f":"VLOOKUP(idioma,trad_v,7,FALSE)","v":{"$error":"#REF!"}},"Γενικό σύνολο"]
["Επικαιροποιημένο ορισθέν μηνιαίο ποσό",null,{"$f":"C6+1","v":2001},{"$f":"VLOOKUP(C7-1,$G$7:$H$29,2)","v":0},{"$f":"E6+(E6*D7)","v":100},null,1992]
[null,null,{"$f":"C7+1","v":2002},{"$f":"VLOOKUP(C8-1,$G$7:$H$29,2)","v":0},100,null,1993]
[null,null,2003,{"$f":"VLOOKUP(C9-1,$G$7:$H$29,2)","v":0},100,null,1994]
[null,null,2004,0,100,null,1995]
[null,null,2005,0,100,null,1996]
[null,null,2006,0,100,null,1997]
[null,null,2007,0,100,null,1998]
[null,null,2008,0,100,null,1999]
[null,null,2009,0,100,null,2000]
[null,null,2010,0,100,null,2001]
[null,null,2011,0,100,null,2002]
[null,null,2012,0,100,null,2003]
[null,null,2013,0,100,null,2004]
[null,null,2014,0,100,null,2005]
[null,null,2015,0,100,null,2006]
[null,null,2016,0,100,null,2007]
[null,null,2017,0,100,null,2008]
[null,null,2018,0,100,null,2009]
[null,null,2019,0,100,null,2010]
[null,null,2020,0,100,null,2011]
[null,null,2021,0,100,null,2012]
[null,null,2022,0,100,null,2013]
[null,null,2023,0,100,null,2014]
[]
[null,"* Καταχωρίστε το έτος και το ποσό της διατροφής ή την τιμή που ορίστηκε για το προηγούμενο έτος που καταχωρίστηκε στον «πίνακα ετήσιου ποσού»"]
[]
[null,"Ο παρών πίνακας τιμαριθμικής αναπροσαρμογής αποτελεί απλώς παράδειγμα, καθώς τα κράτη μέλη πρέπει να αναπτύξουν δικούς τους συμπληρωματικούς πίνακες και τύπους που αντιστοιχούν στο σύστημά τους για τον υπολογισμό της τιμαριθμικής αναπροσαρμογής. "]

{"sheet":"Οδηγίες για τον κύριο πίνακα","index":2,"n_rows":79,"n_cols":1,"rows_kept":79,"cut":false,"hidden":false,"merged":[[27,0,27,8],[26,0,26,8],[25,0,25,8],[24,0,24,8],[22,0,22,8],[0,0,0,8],[12,0,12,8],[11,0,11,8],[16,0,16,8],[1,0,1,8],[13,0,13,8],[14,0,14,8],[15,0,15,8],[86,0,86,8],[28,0,28,8],[78,0,78,8],[79,0,79,8],[45,0,45,8],[65,0,65,8],[77,0,77,8],[76,0,76,8],[63,0,63,8],[67,0,67,8],[66,1,66,9],[49,0,49,8],[44,0,44,8],[47,0,47,8],[46,0,46,8]]}
["Οδηγίες — Οδηγός για τη συμπλήρωση του κύριου πίνακα"]
["Το παρόν έντυπο δεν είναι υποχρεωτικό. Μπορεί να συμπληρωθεί από τον αιτούντα και/ή κάθε πρόσωπο/αρχή που έχει εξουσιοδοτηθεί στο αιτούν κράτος μέλος να συμπληρώσει το έντυπο εξ ονόματος του αιτούντος. Μπορεί να συμπληρωθεί ηλεκτρονικά ή σε χαρτί, χρησιμοποιώντας μορφότυπο Excel ή PDF."]
[]
[]
["1."]
["2."]
["3."]
["4."]
["5."]
["6."]
[]
["1. Αναφέρατε το όνομα του αιτούντος, δηλαδή το φυσικό πρόσωπο/δημόσιο φορέα που διατυπώνει αξίωση ποσού διατροφής εξ ονόματός του/της."]
["2. Αναφέρατε την ημερομηνία και τον αριθμό αναφοράς της απόφασης, του δικαστικού συμβιβασμού ή του δημόσιου εγγράφου που χρησιμεύει ως βάση για τον υπολογισμό των καθυστερημένων παροχών. Εάν ο υπολογισμός των καθυστερημένων παροχών βασίζεται σε πάνω από μία απόφαση, ένα δικαστικό διακανονισμό ή ένα δημόσιο έγγραφο, αναφέρατε την ημερομηνία και τα στοιχεία αναφοράς όλων των αποφάσεων, δικαστικών συμβιβασμών ή δημόσιων εγγράφων, διευρύνοντας την κυψέλη/χρησιμοποιώντας περισσότερες γραμμές της κυψέλης."]
["3. Αναφέρατε το όνομα του δικαστηρίου ή άλλης αρμόδιας αρχής προέλευσης. Εάν εμπλέκονται περισσότερα από ένα δικαστήρια ή αρμόδιες αρχές (σύμφωνα με το σημείο 2), αναγράψτε το όνομα όλων αυτών σύμφωνα με το σημείο 2, αντίστοιχα, διευρύνοντας την κυψέλη/χρησιμοποιώντας περισσότερες γραμμές της κυψέλης."]
["4. Αναφέρατε το ονοματεπώνυμο του εναγομένου (το πρόσωπο κατά του οποίου στρέφεται η υποβαλλόμενη αίτηση διατροφής)."]
["5. Αναφέρατε το όνομα του προσώπου για το οποίο ζητούνται οι καθυστερημένες παροχές διατροφής. Συμπληρώνεται χωριστό έντυπο για κάθε πρόσωπο για το οποίο οφείλεται διατροφή."]
["6. Αναφέρατε τον αριθμό αναφοράς της αίτησης (αιτούσα κεντρική αρχή)."]
[]
["7."]
[]
[]
[]
["7. Προσδιορίστε σε ποιο νόμισμα έχει υπολογιστεί η υποχρέωση διατροφής και τηρείται το αρχείο (δηλαδή αυτό που αναφέρεται στην απόφαση, τον δικαστικό συμβιβασμό ή το δημόσιο έγγραφο). Αν, κατά τη συμπλήρωση του εντύπου, το νόμισμα που αναφέρεται στην απόφαση, τον δικαστικό συμβιβασμό ή το δημόσιο έγγραφο έχει αλλάξει στο κράτος προέλευσης του εγγράφου, συνιστάται, σε κάθε πίνακα ετήσιου ποσού, να εγγραφούν τα ποσά στο νόμισμα στο οποίο καταβλήθηκαν, ώστε να προκύψει για κάθε έτος ένας αυτόματος υπολογισμός των καθυστερημένων παροχών στο ισχύον νόμισμα για το οικείο έτος. Στη συνέχεια, στον συνοπτικό πίνακα, μετατρέψτε τα αποτελέσματα στο νέο νόμισμα που χρησιμοποιείται κατά την συμπλήρωση του εντύπου, έτσι ώστε το συνολικό σωρευμένο ποσό  να είναι εκφρασμένο σε αυτό το νόμισμα. Σε αυτή την περίπτωση, είναι σκόπιμο να παρέχονται περαιτέρω διευκρινίσεις στο τετραγωνίδιο «Άλλες σχετικές πληροφορίες». "]
["8."]
["8. Αναφέρατε το ημερολογιακό έτος στο οποίο έχει εφαρμογή ο πίνακας ετήσιου ποσού. Συμπληρώστε όσους πίνακες χρειαστεί ώστε να καλυφθεί το σύνολο της περιόδου κατά την οποία σωρεύτηκαν καθυστερημένες παροχές (δηλαδή για κάθε ημερολογιακό έτος), αρχίζοντας από το πρώτο έτος μη καταβολής πληρωμής και τελειώνοντας με το πλέον πρόσφατο έτος."]
["Για την προσθήκη περισσότερων πινάκων ετήσιου ποσού, παρακαλείστε να χρησιμοποιήσετε το MS Excel προβαίνοντας στις ακόλουθες ενέργειες:"]
[" Κάντε κλικ στο κουμπί (πρέπει να ενεργοποιηθούν οι μακροεντολές)  "]
["ή "]
["1. Επιλέξτε τον πίνακα ετήσιου ποσού και μία συμπληρωματική γραμμή χρησιμοποιώντας το αριστερό κουμπί του ποντικιού και προβαίνοντας σε κύλιση προς τα κάτω στους αριθμούς των σειρών (δηλαδή από τη σειρά 21 προς τη σειρά 39). Είναι σημαντικό να επιλεγούν οι σειρές και όχι οι κυψέλες για τον αποκλειστικό λόγο ότι για λόγους προστασίας των φύλλων μπορούν να αντιγραφούν και να εισαχθούν μόνο σειρές. 2. Πατώντας το δεξί κουμπί του ποντικιού επιλέξτε Copy.  3. Πατήστε τον επόμενο αριθμό σειράς (σειρά 40) στην αριστερή πλευρά δεξιά του επιλεγμένου τομέα. 4. Πατώντας το δεξί κουμπί του ποντικιού επιλέξτε την εισαγωγή (Insert) των κυψελών που έχουν αντιγραφεί από τον κατάλογο. 5. θα εμφανιστεί πρόσθετος κενός πίνακας ετήσιου ποσού με τους ενσωματωμένους τύπους. Εάν χρειάζεστε περισσότερους πίνακες ετήσιου ποσού παρακαλείσθε να επαναλάβετε τα στάδια από το 1 έως το 4."]
[]
["9."]
[]
[]
[]
[]
[]
[]
[]
[]
[]
[]
[]
[]
["10."]
["9. Ο πίνακας υπολογίζει τις «καθυστερημένες παροχές» αυτομάτως με τα στοιχεία που έχουν καταχωριστεί στις στήλες (εκτός από τα ποσά που καταβλήθηκαν σε άλλα νομίσματα τα οποία χρησιμεύουν μόνο ως αναφορά)."]
["Εισάγετε τα ποσά στις κυψέλες, ανάλογα με την περίπτωση. Αφήστε το πεδίο κενό εάν δεν ισχύει. Όλες οι κυψέλες/στήλες δεν προορίζονται για χρησιμοποίηση σε όλες τις περιπτώσεις. \n «Ορισθέν μηνιαίο ποσό»: Καταχωρίστε για κάθε μήνα το ποσό που αναφέρεται στην απόφαση, τον δικαστικό συμβιβασμό ή το δημόσιο έγγραφο.\n «Καταβληθέντα ποσά από τον υπόχρεο διατροφής» : καταχωρίστε τα πράγματι καταβληθέντα ποσά από τον υπόχρεο διατροφής. Όταν τούτο δεν αντιστοιχεί στο ορισθέν για τον συγκεκριμένο μήνα ποσό, το υπόλοιπο θα αντικατοπτρίζεται στον τελικό υπολογισμό. Θα πρέπει να αγνοήσετε το υπόλοιπο στη στήλη των «καθυστερημένων παροχών» για τους μήνες που αφορά η καταβολή πλεονάζοντος ποσού. Το σύνολο των καθυστερημένων παροχών θα εμφαίνεται στον συνοπτικό πίνακα. \n«Ποσά που καταβλήθηκαν σε άλλα νομίσματα» : καταχωρίστε τις μερικές ή πλήρεις πληρωμές που πραγματοποίησε ο υπόχρεος διατροφής σε νόμισμα διαφορετικό από το αναφερόμενο στην απόφαση, τον δικαστικό συμβιβασμό ή το δημόσιο έγγραφο. Αναφέρατε το νόμισμα στο οποίο πραγματοποιήθηκε η πληρωμή (π.χ. 1 000 CZK/HUF/PLN κ.λπ.) και μετατρέψτε το ποσό αυτό στο νόμισμα του πίνακα καταχωρίζοντας τη συναλλαγματική ισοτιμία  που χρησιμοποιήθηκε στη στήλη «Ποσά που καταβλήθηκαν σε άλλα νομίσματα» και αναφέροντας το αποτέλεσμα της μετατροπής στη στήλη «Ποσά που καταβλήθηκαν από τον υπόχρεο διατροφής». Η μηνιαία αυτή καταχώρηση «πληρωμών σε άλλα νομίσματα» μπορεί να είναι χρήσιμη για ορισμένους υποψηφίους, ως προς την εξήγηση των αριθμητικών στοιχείων της στήλης «Ποσά που καταβλήθηκαν από τον υπόχρεο διατροφής»."]
["«Ποσά που καταβλήθηκαν από άλλες πηγές» : καταχωρίστε τυχόν πληρωμές από δημόσιους φορείς ή αρχές εκτός του υπόχρεου διατροφής. Πρόκειται για στήλη που επιτρέπει στον αιτούντα ή την αρχή να αναφέρει κάθε πληρωμή που δεν προέρχεται από τον υπόχρεο διατροφής, αλλά από άλλη αρχή, υπηρεσία ή οργανισμό (συνήθως παροχές που χορηγούνται αντί διατροφής). Οι εν λόγω πληρωμές είναι δυνατό να ανακτηθούν με χωριστή αίτηση. Παρακαλείστε να αγνοήσετε την παρούσα στήλη εάν δεν ισχύει στην περίπτωσή σας. Για κάθε καταχώριση, αναφέρατε λεπτομερή στοιχεία για την «άλλη πηγή» στο τετραγωνίδιο «Άλλες σχετικές πληροφορίες» στο τέλος του πίνακα. Να μη συμπληρώσετε τη στήλη αυτή εάν ο αιτών είναι δημόσιος φορέας, καθώς δεν εμπλέκεται άλλη πηγή (δηλ. «άλλη» από τον αιτούντα). Τα ποσά σε αυτή τη στήλη δεν καλύπτονται από την αίτηση για ανάκτηση και αφαιρούνται από το «ορισθέν μηνιαίο ποσό»."]
["«Καθυστερημένες παροχές»: Η στήλη αυτή παρουσιάζει το υπόλοιπο για κάθε μήνα υπολογισμένο αυτομάτως με βάση τα αριθμητικά στοιχεία των στηλών «Ορισθέν μηνιαίο ποσό», «Καταβληθέντα ποσά από τον υπόχρεο διατροφής», «Ποσά που καταβλήθηκαν από άλλες πηγές». Αν οι πληρωμές δεν είναι τακτικές ή ισόποσες, μερικοί μήνες μπορεί να παρουσιάζουν πλεονάζον ποσό και ορισμένοι μπορεί να εμφανίζουν ανεπαρκή πληρωμή της υποχρέωσης διατροφής. Ωστόσο, ο συνοπτικός πίνακας θα παρουσιάζει το πραγματικό υπόλοιπο ανεξάρτητα από τις περιστασιακές πλεονάζουσες ή ανεπαρκείς πληρωμές κατά την περίοδο σώρευσης των καθυστερημένων παροχών."]
[]
["10. Στην τελευταία γραμμή «Σύνολο» του πίνακα ετήσιου ποσού μην καταχωρίσετε κανένα ποσό διότι εμφανίζεται αυτόματα."]
[]
[]
[]
["11."]
[]
[]
[]
[]
[]
[]
[]
[]
[]
["11. Καταχωρίστε στην πρώτη στήλη κάθε έτος για το οποίο έχει ολοκληρωθεί πίνακας ετήσιου ποσού. Στις στήλες «ποσά», καταχωρίστε τα ποσά από τις γραμμές «Σύνολο» των πινάκων ετήσιου ποσού. Η στήλη «Ποσά που καταβλήθηκαν σε άλλα νομίσματα» δεν περιλαμβάνεται εδώ καθώς χρησιμοποιείται μόνο για λόγους αναφοράς."]
["12."]
["12. Παρακαλείσθε να παράσχετε οποιαδήποτε πρόσθετη σχετική πληροφορία που δεν θα μπορούσε να δοθεί στα προηγούμενα πλαίσια."]
["13."]
["13. Εάν χρησιμοποιείται τιμαριθμική αναπροσαρμογή και επισυνάπτεται πίνακας τιμαριθμικής αναπροσαρμογής, σημειώστε το τετραγωνίδιο και καταχωρίστε τα αναπροσαρμοσμένα ποσά για κάθε σχετική περίοδο (όπως ορίζεται από την εθνική νομοθεσία του κράτους μέλους) στη στήλη «Ορισθέν μηνιαίο ποσό». Στην περίπτωση αυτή, το ορισθέν μηνιαίο ποσό μπορεί να μεταβάλλεται από περίοδο σε περίοδο.  Παρουσιάστε σε συμπληρωματικό πίνακα τη μέθοδο υπολογισμού του αναθεωρημένου ποσού  μαζί με την εθνική νομοθεσία στις οποίες βασίζεται η τιμαριθμική αναπροσαρμογή."]
[]
["14."]
["15."]
[]
["16."]
[]
[]
[]
["14. Αναγράψτε τον τόπο και την ημερομηνία υπογραφής."]
["15. Εάν ο πίνακας συμπληρώνεται από τον αιτούντα, ο τελευταίος θα πρέπει να υπογράψει εδώ."]
["16. Εάν ο πίνακας δεν συμπληρώνεται από τον αιτούντα, να καταχωριστεί το ονοματεπώνυμο και η υπογραφή του εξουσιοδοτημένου προσώπου/αρχής. Στις περιπτώσεις αυτές, θα πρέπει να παρέχονται αξιόπιστες πληροφορίες (επίσημα πρακτικά ή δήλωση του αιτούντα) ως προς την πηγή των δεδομένων στο έντυπο."]

{"sheet":" ","index":3,"n_rows":19,"n_cols":6,"rows_kept":19,"cut":false,"hidden":false,"merged":[[1,0,1,5],[3,0,5,0],[3,1,5,1],[3,2,5,2],[3,3,5,3],[3,4,5,4],[3,5,5,5],[2,1,2,2],[2,3,2,4]]}
[]
["Πίνακας ετήσιου ποσού"]
["Έτος",null,null,"Νόμισμα πίνακα     "]
["Μήνας","Ορισθέν μηνιαίο ποσό","Ποσά που καταβλήθηκαν από τον υπόχρεο διατροφής","Ποσά που καταβλήθηκαν σε άλλα νομίσματα","Ποσά που καταβλήθηκαν από άλλες πηγές","Καθυστερημένες παροχές"]
[]
[]
["Ιανουάριος",null,null,null,null,{"$f":"B7-C7-E7","v":0}]
["Φεβρουάριος",null,null,null,null,0]
["Μάρτιος",null,null,null,null,0]
["Απρίλιος",null,null,null,null,0]
["Μάιος",null,null,null,null,0]
["Ιούνιος",null,null,null,null,0]
["Ιούλιος",null,null,null,null,0]
["Αύγουστος",null,null,null,null,0]
["Σεπτέμβριος",null,null,null,null,0]
["Οκτώβριος",null,null,null,null,0]
["Νοέμβριος",null,null,null,null,0]
["Δεκέμβριος",null,null,null,null,0]
["ΣΥΝΟΛΟ",{"$f":"SUM(B7:B18)","v":0},{"$f":"SUM(C7:C18)","v":0},null,{"$f":"SUM(E7:E18)","v":0},0]